fUST/lending_fUST_20250620
["ID","MTS","AMOUNT","RATE_DAILY","PERIOD"]
[366743767,1750427449428,-215.0738,0.00021624,2]
[366743769,1750427449438,-151.0,0.00021627,2]
[366743771,1750427449448,-151.0,0.00021627,2]
[366743773,1750427449458,-151.0,0.00021627,2]
[366743775,1750427449470,-151.0,0.00021627,2]
[366743777,1750427449480,-235.977306,0.00021627,2]
[366743779,1750427449490,-235.977306,0.00021627,2]
[366743781,1750427449500,-151.0,0.00021628,2]
[366743782,1750427449511,-58082.94531269,0.0002163,2]
[366743784,1750427449769,5000.0,0.000201,2]
[366743837,1750427450369,-3292.11376925,0.0002163,2]
[366743901,1750427451021,-172.82083208,0.00020266,2]
[366743903,1750427451031,-318.60094972,0.00021079,3]
[366743918,1750427451177,-150.13988107,0.00020542,2]
[366743920,1750427451189,-335.57011893,0.00020542,2]
[366743922,1750427451199,-218.18905028,0.00021079,3]
[366743924,1750427451209,-386.33229006,0.0002163,2]
[366744364,1750427458001,-3696.61164535,0.0002163,2]
[366744365,1750427458504,-216.06285829,0.00020266,2]
[366744366,1750427461969,-160.0,0.00020265,2]
[366744367,1750427465418,499.03128938,0.00019263,2]
[366744368,1750427488325,280.1009079,0.00019442,2]
[366744369,1750427518699,438.8088849,0.00024658,120]
[366744370,1750427524024,296.44270502,0.00019266,2]
[366744371,1750427524049,76.37145698,0.00019266,2]
[366744372,1750427539716,9923.62854302,0.00019269,2]
[366744373,1750427539742,10000.0,0.00019269,2]
[366744374,1750427539768,4976.37145698,0.00019269,2]
[366744375,1750427589481,5023.62854302,0.00019266,2]
[366744376,1750427589509,4375.04271068,0.00019266,2]
[366744378,1750427630392,381.96330828,0.00020099,2]
[366744379,1750427640402,1280.0,0.00019933,2]
[366744380,1750427641701,3962.99398104,0.000201,2]
[366744381,1750427641731,1037.00601896,0.000201,2]
[366744383,1750427662001,5000.0,0.000201,2]
[366744384,1750427676920,162.409384,0.00019253,2]
[366744385,1750427677127,162.409384,0.00019302,2]
[366744386,1750427677533,162.409384,0.0001935,2]
[366744387,1750427677688,3475.76582904,0.000201,2]
[366744388,1750427677726,1524.23417096,0.000201,2]
[366744389,1750427678126,5000.0,0.00022,30]
[366744391,1750427691354,8475.76582904,0.000201,2]
[366744392,1750427691392,1524.23417096,0.000201,2]
[366744393,1750427693902,5000.0,0.000201,2]
[366744394,1750427694321,3475.76582904,0.00017127,2]
[366744395,1750427694356,1359.44010939,0.00017127,2]
[366744396,1750427701966,952.3434912,0.00019259,2]
[366744397,1750427709803,5000.0,0.000201,2]
[366744398,1750427725834,2688.21639941,0.000201,2]
[366744399,1750427725876,2311.78360059,0.000201,2]
[366744400,1750427732093,7688.21639941,0.00019252,2]
[366744401,1750427732132,2413.93995169,0.00019252,2]
[366744402,1750427742981,689.95395994,0.00019263,2]
[366744403,1750427758587,6896.10608837,0.000201,2]
[366744404,1750427758628,7868.89391163,0.000201,2]
[366744405,1750427766986,459.96930662,0.00019263,2]
[366744408,1750427835205,1671.13678175,0.00019259,2]
[366744409,1750427835246,902.78751495,0.00019259,2]
[366744412,1750427898417,2809.91128594,0.000201,2]
[366744414,1750427908879,2954.45842434,0.000201,2]
[366744416,1750427911504,1477.22921218,0.000201,2]
[366744417,1750427913240,738.61460609,0.000201,2]
[366744418,1750427914047,225.823163,0.000201,2]
[366744419,1750427914090,143.48414004,0.000201,2]
[366744420,1750427914953,184.65365152,0.000201,2]
[366744421,1750427915780,-213.95836848,0.00020152,2]
[366744424,1750427955933,213.95836848,0.00020053,2]
[366744425,1750428001510,184.03119359,0.00020056,2]
[366744429,1750428044242,306.64620442,0.00019266,2]
[366744430,1750428049002,-152.37605948,0.00020141,2]
[366744431,1750428064552,84.22539845,0.00020098,2]
[366744432,1750428064591,379.88651591,0.00020098,2]
[366744433,1750428068779,204.43080294,0.00019266,2]
[366744434,1750428070370,-259.68609354,0.00020126,2]
[366744436,1750428087421,334.0,0.00019746,2]
[366744437,1750428087830,-204.42582081,0.00020126,2]
[366744438,1750428087854,-46.49312848,0.00020141,2]
[366744439,1750428091231,445.1992984,0.00020098,2]
[366744440,1750428091587,334.0,0.00019671,2]
[366744441,1750428092253,-197.88776882,0.00020141,2]
[366744443,1750428095455,334.0,0.0001992,2]
[366744444,1750428100160,334.0,0.00019756,2]
[366744448,1750428196668,154.70397145,0.00020097,2]
[366744449,1750428197632,7479.7794113,0.00019188,2]
[366744450,1750428197669,2520.2205887,0.00019188,2]
[366744451,1750428198955,-154.70397145,0.00020141,2]
[366744453,1750428199961,-171.44582063,0.00020141,2]
[366744454,1750428218776,5770.0,0.000201,2]
[366744455,1750428220936,30168.37097295,0.00024658,120]
[366744458,1750428271971,200.0,0.000201,2]
[366744459,1750428297817,188.539002,0.00019259,2]
[366744460,1750428306527,389.5493861,0.00020089,2]
[366744462,1750428319100,272.553826,0.00013699,2]
[366744463,1750428323923,205.58168121,0.00019581,2]
[366744464,1750428345376,150.0,0.0001953,2]
[366744465,1750428357144,184.0311936,0.00020051,2]
[366744466,1750428372081,150.0,0.00022,30]
[366744467,1750428390801,119.52432239,0.00020089,2]
[366744468,1750428390838,1837.30881821,0.00020089,2]
[366744469,1750428393931,666.0,0.00019185,2]
[366744470,1750428482331,171.28892116,0.00020051,2]
[366744472,1750428507422,201.0,0.00024658,120]
[366744473,1750428510793,186.407081,0.00019181,2]
[366744474,1750428522372,340.85571282,0.00020086,2]
[366744504,1750428632791,-500.0,0.00020151,2]
[366744506,1750428632801,-500.0,0.00020151,2]
[366744508,1750428632812,-264.05279596,0.00020151,2]
[366744510,1750428632822,-1280.0,0.00020156,2]
[366744512,1750428632831,-1200.0,0.00020173,2]
[366744514,1750428632840,-1956.8331406,0.00020174,2]
[366744516,1750428632850,-1688.0,0.00020177,2]
[366744518,1750428632859,-207.4,0.00020177,2]
[366744520,1750428632869,-227.11700007,0.0002018,2]
[366744522,1750428632878,-300.0,0.00020183,2]
[366744524,1750428632888,-300.0,0.00020183,2]
[366744526,1750428632898,-460.0,0.00020184,2]
[366744528,1750428632908,-460.0,0.00020184,2]
[366744530,1750428632918,-460.0,0.00020184,2]
[366744532,1750428632928,-460.0,0.00020184,2]
[366744534,1750428632938,-460.0,0.00020184,2]
[366744536,1750428632948,-500.0,0.00020185,2]
[366744538,1750428632960,-500.0,0.00020185,2]
[366744540,1750428632970,-500.0,0.00020185,2]
[366744542,1750428632980,-500.0,0.00020185,2]
[366744544,1750428632989,-500.0,0.00020185,2]
[366744546,1750428632999,-290.01286173,0.00020185,2]
[366744548,1750428633009,-500.0,0.00020185,2]
[366744550,1750428633018,-500.0,0.00020185,2]
[366744552,1750428633027,-147.85885103,0.00020185,2]
[366744555,1750428633050,-352.14114897,0.00020185,2]
[366744557,1750428633060,-500.0,0.00020185,2]
[366744559,1750428633071,-500.0,0.00020185,2]
[366744561,1750428633082,-500.0,0.00020185,2]
[366744563,1750428633092,-353.7245542,0.00020185,2]
[366744565,1750428633101,-137.67447679,0.00020185,2]
[366744567,1750428633114,-217.49229473,0.00020185,2]
[366744569,1750428633124,-501.69772517,0.00020185,2]
[366744571,1750428633134,-500.0,0.00020185,2]
[366744573,1750428633144,-500.0,0.00020185,2]
[366744575,1750428633153,-500.0,0.00020185,2]
[366744577,1750428633163,-500.0,0.00020185,2]
[366744579,1750428633173,-334.28413211,0.00020185,2]
[366744581,1750428633183,-283.97054896,0.00020185,2]
[366744583,1750428633193,-500.0,0.00020185,2]
[366744585,1750428633203,-500.0,0.00020185,2]
[366744587,1750428633212,-500.0,0.00020185,2]
[366744589,1750428633222,-500.0,0.00020185,2]
[366744591,1750428633231,-203.31832421,0.00020185,2]
[366744593,1750428633243,-500.0,0.00020185,2]
[366744595,1750428633252,-500.0,0.00020185,2]
[366744597,1750428633262,-438.02493036,0.00020185,2]
[366744600,1750428633283,-61.97506964,0.00020185,2]
[366744602,1750428633293,-313.94534131,0.00020185,2]
[366744604,1750428633303,-500.0,0.00020185,2]
[366744606,1750428633312,-500.0,0.00020185,2]
[366744608,1750428633322,-500.0,0.00020185,2]
[366744610,1750428633332,-500.0,0.00020185,2]
[366744633,1750428633557,-500.0,0.00020185,2]
[366744635,1750428633568,-500.0,0.00020185,2]
[366744637,1750428633579,-545.25396484,0.00020185,2]
[366744639,1750428633589,-500.0,0.00020185,2]
[366744641,1750428633600,-500.0,0.00020185,2]
[366744643,1750428633610,-500.0,0.00020185,2]
[366744645,1750428633620,-500.0,0.00020185,2]
[366744647,1750428633630,-500.0,0.00020185,2]
[366744649,1750428633640,-500.0,0.00020185,2]
[366744651,1750428633652,-500.0,0.00020185,2]
[366744653,1750428633663,-500.0,0.00020185,2]
[366744655,1750428633673,-500.0,0.00020185,2]
[366744657,1750428633683,-500.0,0.00020185,2]
[366744659,1750428633693,-500.0,0.00020185,2]
[366744661,1750428633703,-500.0,0.00020185,2]
[366744663,1750428633713,-500.0,0.00020185,2]
[366744665,1750428633724,-500.0,0.00020185,2]
[366744667,1750428633733,-500.0,0.00020185,2]
[366744669,1750428633743,-500.0,0.00020185,2]
[366744671,1750428633753,-500.0,0.00020185,2]
[366744673,1750428633762,-500.0,0.00020185,2]
[366744675,1750428633774,-500.0,0.00020185,2]
[366744678,1750428633798,-500.0,0.00020185,2]
[366744680,1750428633810,-500.0,0.00020185,2]
[366744682,1750428633821,-500.0,0.00020185,2]
[366744684,1750428633832,-500.0,0.00020185,2]
[366744686,1750428633843,-500.0,0.00020185,2]
[366744688,1750428633855,-500.0,0.00020185,2]
[366744690,1750428633866,-500.0,0.00020185,2]
[366744692,1750428633876,-500.0,0.00020185,2]
[366744694,1750428633889,-500.0,0.00020185,2]
[366744696,1750428633899,-500.0,0.00020185,2]
[366744698,1750428633910,-500.0,0.00020185,2]
[366744700,1750428633920,-500.0,0.00020185,2]
[366744702,1750428633931,-500.0,0.00020185,2]
[366744704,1750428633944,-500.0,0.00020185,2]
[366744706,1750428633955,-500.0,0.00020185,2]
[366744708,1750428633968,-500.0,0.00020185,2]
[366744710,1750428633979,-500.0,0.00020185,2]
[366744712,1750428633992,-500.0,0.00020185,2]
[366744714,1750428634002,-500.0,0.00020185,2]
[366744716,1750428634013,-500.0,0.00020185,2]
[366744718,1750428634024,-500.0,0.00020185,2]
[366744720,1750428634034,-500.0,0.00020185,2]
[366744722,1750428634044,-500.0,0.00020185,2]
[366744724,1750428634054,-500.0,0.00020185,2]
[366744726,1750428634063,-112.84537531,0.00020185,2]
[366745145,1750428638842,-387.15462469,0.00020185,2]
[366745147,1750428638852,-500.0,0.00020185,2]
[366745149,1750428638862,-183.58746344,0.00020185,2]
[366745151,1750428638874,-500.0,0.00020185,2]
[366745153,1750428638884,-500.0,0.00020185,2]
[366745155,1750428638893,-500.0,0.00020185,2]
[366745157,1750428638903,-500.0,0.00020185,2]
[366745159,1750428638913,-500.0,0.00020185,2]
[366745161,1750428638923,-500.0,0.00020185,2]
[366745163,1750428638932,-500.0,0.00020185,2]
[366745165,1750428638942,-500.0,0.00020185,2]
[366745167,1750428638952,-500.0,0.00020185,2]
[366745169,1750428638961,-500.0,0.00020185,2]
[366745171,1750428638971,-500.0,0.00020185,2]
[366745173,1750428638981,-500.0,0.00020185,2]
[366745175,1750428638991,-500.0,0.00020185,2]
[366745177,1750428639002,-500.0,0.00020185,2]
[366745179,1750428639012,-500.0,0.00020185,2]
[366745181,1750428639021,-650.0,0.00020185,2]
[366745183,1750428639031,-500.0,0.00020185,2]
[366745185,1750428639040,-500.0,0.00020185,2]
[366745187,1750428639050,-500.0,0.00020185,2]
[366745189,1750428639059,-500.0,0.00020185,2]
[366745190,1750428639069,-300.0,0.00020186,2]
[366745192,1750428639078,-460.0,0.00020186,2]
[366745194,1750428639088,-460.0,0.00020186,2]
[366745196,1750428639098,-460.0,0.00020186,2]
[366745198,1750428639107,-380.0,0.00020186,2]
[366745200,1750428639117,-460.0,0.00020186,2]
[366745202,1750428639126,-460.0,0.00020186,2]
[366745204,1750428639135,-1148.15,0.00020186,2]
[366745206,1750428639144,-2002.89,0.00020186,2]
[366745208,1750428639154,-460.0,0.00020186,2]
[366745210,1750428639163,-460.0,0.00020186,2]
[366745212,1750428639173,-1961.56,0.00020186,2]
[366745214,1750428639183,-2356.52,0.00020186,2]
[366745216,1750428639192,-568.6,0.00020186,2]
[366745218,1750428639201,-460.0,0.00020186,2]
[366745220,1750428639210,-460.0,0.00020186,2]
[366745222,1750428639220,-460.0,0.00020186,2]
[366745224,1750428639230,-1959.16,0.00020186,2]
[366745226,1750428639240,-2570.9,0.00020186,2]
[366745228,1750428639249,-460.0,0.00020186,2]
[366745230,1750428639259,-460.0,0.00020186,2]
[366745232,1750428639269,-153.49897156,0.00020187,2]
[366745234,1750428639278,-25000.0,0.00020187,2]
[366745236,1750428639287,-9972.29474731,0.00020187,2]
[366745239,1750428639297,-5000.0,0.00020187,2]
[366745241,1750428639307,-500.0,0.00020187,2]
[366745243,1750428639316,-500.0,0.00020187,2]
[366745245,1750428639326,-500.0,0.00020187,2]
[366745247,1750428639335,-500.0,0.00020187,2]
[366745249,1750428639344,-500.0,0.00020187,2]
[366745250,1750428639353,-500.0,0.00020187,2]
[366745252,1750428639363,-500.0,0.00020187,2]
[366745254,1750428639373,-500.0,0.00020187,2]
[366745256,1750428639383,-500.0,0.00020187,2]
[366745259,1750428639392,-500.0,0.00020187,2]
[366745260,1750428639401,-500.0,0.00020187,2]
[366745262,1750428639411,-500.0,0.00020187,2]
[366745265,1750428639421,-500.0,0.00020187,2]
[366745266,1750428639430,-500.0,0.00020187,2]
[366745268,1750428639439,-500.0,0.00020187,2]
[366745270,1750428639449,-272.553826,0.00020187,2]
[366745272,1750428639459,-727.67,0.0002019,3]
[366745275,1750428639469,-565.96,0.0002019,3]
[366745277,1750428639479,-282.98,0.0002019,3]
[366745279,1750428639489,-848.99,0.0002019,3]
[366745281,1750428639499,-460.0,0.00020196,2]
[366745283,1750428639508,-460.0,0.00020196,2]
[366745284,1750428639518,-460.0,0.00020196,2]
[366745287,1750428639528,-460.0,0.00020196,2]
[366745289,1750428639538,-460.0,0.00020196,2]
[366745291,1750428639547,-460.0,0.00020196,2]
[366745293,1750428639557,-460.0,0.00020196,2]
[366745295,1750428639567,-460.0,0.00020196,2]
[366745297,1750428639577,-460.0,0.00020196,2]
[366745299,1750428639589,-460.0,0.00020196,2]
[366745301,1750428639599,-460.0,0.00020196,2]
[366745302,1750428639608,-460.0,0.00020196,2]
[366745305,1750428639619,-436.40730184,0.00020196,2]
[366745306,1750428639629,-460.0,0.00020196,2]
[366745308,1750428639639,-420.38926321,0.00020196,2]
[366745311,1750428639648,-460.0,0.00020196,2]
[366745312,1750428639658,-564.55659888,0.00020197,2]
[366745314,1750428639669,-1146.43,0.00020197,2]
[366745316,1750428639680,-3744.47,0.00020197,2]
[366745318,1750428639690,-505.91,0.00020197,2]
[366745320,1750428639699,-460.0,0.00020197,2]
[366745323,1750428639709,-460.0,0.00020197,2]
[366745324,1750428639718,-673.44,0.00020197,2]
[366745327,1750428639729,-460.0,0.00020197,2]
[366745329,1750428639738,-460.0,0.00020197,2]
[366745331,1750428639747,-460.0,0.00020197,2]
[366745332,1750428639757,-512.13,0.00020197,2]
[366745334,1750428639767,-460.0,0.00020197,2]
[366745336,1750428639776,-927.48,0.00020197,2]
[366745339,1750428639786,-460.0,0.00020197,2]
[366745341,1750428639796,-354.21613398,0.00020197,2]
[366745342,1750428639806,-532.53,0.00020197,2]
[366745343,1750428639820,-460.0,0.00020197,2]
[366745344,1750428639830,-460.0,0.00020197,2]
[366745345,1750428639840,-1003.65,0.00020197,2]
[366745346,1750428639849,-460.0,0.00020197,2]
[366745347,1750428639859,-460.0,0.00020197,2]
[366745348,1750428639870,-460.0,0.00020197,2]
[366745349,1750428639879,-460.0,0.00020198,2]
[366745350,1750428639891,-500.0,0.00020199,2]
[366745351,1750428639902,-460.0,0.00020199,2]
[366745352,1750428639911,-440.0,0.00020199,2]
[366745353,1750428639921,-460.0,0.00020199,2]
[366745354,1750428639930,-460.0,0.00020199,2]
[366745355,1750428639940,-460.0,0.00020199,2]
[366745356,1750428639950,-181.57858191,0.00020199,2]
[366745357,1750428639959,-460.0,0.00020199,2]
[366745358,1750428639969,-460.0,0.00020199,2]
[366745359,1750428639978,-460.0,0.00020199,2]
[366745360,1750428639989,-460.0,0.00020199,2]
[366745361,1750428639998,-460.0,0.00020199,2]
[366745362,1750428640008,-460.0,0.00020199,2]
[366745363,1750428640018,-460.0,0.00020199,2]
[366745364,1750428640027,-402.63028104,0.00020199,2]
[366745365,1750428640036,-460.0,0.00020199,2]
[366745366,1750428640047,-449.43628336,0.00020199,2]
[366745367,1750428640056,-460.0,0.00020199,2]
[366745368,1750428640066,-460.0,0.00020199,2]
[366745369,1750428640076,-460.0,0.00020199,2]
[366745370,1750428640085,-460.0,0.00020199,2]
[366745371,1750428640095,-418.99801403,0.00020199,2]
[366745372,1750428640105,-435.24671869,0.00020199,2]
[366745373,1750428640115,-430.0,0.00020199,2]
[366745374,1750428640125,-460.0,0.00020199,2]
[366745375,1750428640135,-460.0,0.00020199,2]
[366745376,1750428640145,-460.0,0.00020199,2]
[366745377,1750428640155,-460.0,0.00020199,2]
[366745378,1750428640164,-460.0,0.00020199,2]
[366745379,1750428640174,-460.0,0.00020199,2]
[366745380,1750428640184,-401.49629547,0.00020199,2]
[366745381,1750428640194,-569.58738304,0.00020199,2]
[366745382,1750428640203,-460.0,0.00020199,2]
[366745384,1750428640213,-460.0,0.00020199,2]
[366745386,1750428640222,-460.0,0.00020199,2]
[366745388,1750428640232,-460.0,0.00020199,2]
[366745390,1750428640241,-460.0,0.00020199,2]
[366745392,1750428640251,-478.47216707,0.00020199,2]
[366745394,1750428640261,-460.0,0.00020199,2]
[366745396,1750428640270,-460.0,0.00020199,2]
[366745398,1750428640279,-154.78289969,0.00020199,2]
[366745400,1750428640289,-438.34854147,0.00020199,2]
[366745402,1750428640298,-460.0,0.00020199,2]
[366745403,1750428640308,-460.0,0.00020199,2]
[366745405,1750428640317,-460.0,0.00020199,2]
[366745408,1750428640327,-460.0,0.00020199,2]
[366745411,1750428640336,-500.0,0.00020199,2]
[366745412,1750428640345,-460.0,0.00020199,2]
[366745415,1750428640355,-432.42377398,0.00020199,2]
[366745417,1750428640365,-460.0,0.00020199,2]
[366745419,1750428640374,-460.0,0.00020199,2]
[366745421,1750428640384,-460.0,0.00020199,2]
[366745423,1750428640393,-460.0,0.00020199,2]
[366745425,1750428640403,-460.0,0.00020199,2]
[366745427,1750428640413,-460.0,0.00020199,2]
[366745429,1750428640423,-460.0,0.00020199,2]
[366745430,1750428640434,-460.0,0.00020199,2]
[366745432,1750428640444,-460.0,0.00020199,2]
[366745435,1750428640454,-447.88892024,0.00020199,2]
[366745436,1750428640463,-460.0,0.00020199,2]
[366745438,1750428640473,-460.0,0.00020199,2]
[366745440,1750428640483,-460.0,0.00020199,2]
[366745442,1750428640492,-460.0,0.00020199,2]
[366745444,1750428640502,-460.0,0.00020199,2]
[366745446,1750428640512,-460.0,0.00020199,2]
[366745448,1750428640522,-461.1865707,0.00020199,2]
[366745450,1750428640531,-460.0,0.00020199,2]
[366745452,1750428640541,-2537.68,0.00020199,2]
[366745454,1750428640550,-422.532581,0.00020199,2]
[366745456,1750428640559,-460.0,0.00020199,2]
[366745458,1750428640569,-460.0,0.00020199,2]
[366745460,1750428640578,-661.11,0.00020199,2]
[366745462,1750428640588,-817.56,0.00020199,2]
[366745464,1750428640598,-460.0,0.00020199,2]
[366745466,1750428640607,-1429.29,0.00020199,2]
[366745468,1750428640617,-460.0,0.00020199,2]
[366745470,1750428640628,-496.86915854,0.00020199,2]
[366745472,1750428640638,-460.0,0.00020199,2]
[366745474,1750428640647,-460.0,0.00020199,2]
[366745476,1750428640657,-1285.71,0.00020199,2]
[366745478,1750428640667,-460.0,0.00020199,2]
[366745480,1750428640677,-518.63,0.00020199,2]
[366745482,1750428640686,-460.0,0.00020199,2]
[366745484,1750428640696,-504.38,0.00020199,2]
[366745486,1750428640706,-460.0,0.00020199,2]
[366745488,1750428640716,-460.0,0.00020199,2]
[366745490,1750428640726,-460.0,0.00020199,2]
[366745492,1750428640735,-477.57,0.00020199,2]
[366745494,1750428640745,-530.43,0.00020199,2]
[366745496,1750428640755,-460.0,0.00020199,2]
[366745498,1750428640763,-460.0,0.00020199,2]
[366745500,1750428640773,-1251.81,0.00020199,2]
[366745502,1750428640782,-370.0,0.00020199,2]
[366745504,1750428640792,-230.0,0.00020199,2]
[366745506,1750428640802,-460.0,0.00020199,2]
[366745508,1750428640814,-328.38354655,0.00020199,2]
[366745510,1750428640824,-501.74,0.00020199,2]
[366745512,1750428640833,-500.0,0.00020199,2]
[366745514,1750428640842,-505.16389674,0.00020199,2]
[366745516,1750428640852,-460.0,0.00020199,2]
[366745518,1750428640862,-460.0,0.00020199,2]
[366745520,1750428640872,-460.0,0.00020199,2]
[366745521,1750428640881,-460.0,0.00020199,2]
[366745522,1750428640891,-460.0,0.00020199,2]
[366745523,1750428640901,-1328.87,0.00020199,2]
[366745524,1750428640910,-306.57011729,0.00020199,2]
[366745525,1750428640920,-460.0,0.00020199,2]
[366745526,1750428640929,-460.0,0.00020199,2]
[366745527,1750428640939,-380.57585378,0.00020199,2]
[366745528,1750428640948,-588.0,0.00020199,2]
[366745529,1750428640958,-460.0,0.00020199,2]
[366745531,1750428640967,-460.0,0.00020199,2]
[366745533,1750428640976,-833.67,0.00020199,2]
[366745535,1750428640985,-460.0,0.00020199,2]
[366745537,1750428640994,-460.0,0.00020199,2]
[366745539,1750428641004,-460.0,0.00020199,2]
[366745541,1750428641013,-3081.68,0.00020199,2]
[366745543,1750428641023,-460.0,0.00020199,2]
[366745545,1750428641033,-460.0,0.00020199,2]
[366745547,1750428641045,-460.0,0.00020199,2]
[366745549,1750428641055,-361.29049873,0.00020199,2]
[366745551,1750428641064,-974.16,0.00020199,2]
[366745553,1750428641074,-460.0,0.00020199,2]
[366745555,1750428641084,-460.0,0.00020199,2]
[366745556,1750428641093,-460.0,0.00020199,2]
[366745557,1750428641102,-460.0,0.00020199,2]
[366745558,1750428641112,-460.0,0.00020199,2]
[366745559,1750428641121,-460.0,0.00020199,2]
[366745560,1750428641131,-410.14068209,0.00020199,2]
[366745561,1750428641142,-999.5,0.00020199,2]
[366745562,1750428641152,-460.0,0.00020199,2]
[366745563,1750428641162,-460.0,0.00020199,2]
[366745564,1750428641173,-460.0,0.00020199,2]
[366745565,1750428641183,-460.0,0.00020199,2]
[366745566,1750428641192,-460.0,0.00020199,2]
[366745567,1750428641203,-460.0,0.00020199,2]
[366745568,1750428641213,-20704.2012009,0.000202,3]
[366745569,1750428641223,-213.51557418,0.000202,3]
[366745570,1750428641232,-12546.90244252,0.000202,3]
[366745571,1750428641241,-846.08887863,0.000202,3]
[366745572,1750428641251,-160.0,0.000202,3]
[366745573,1750428641261,-160.0,0.000202,3]
[366745574,1750428641270,-1750.456,0.00020232,2]
[366745575,1750428641280,-169.8,0.00020251,2]
[366745576,1750428641289,-460.0,0.00020252,2]
[366745577,1750428641299,-460.0,0.00020252,2]
[366745578,1750428641309,-460.0,0.00020252,2]
[366745579,1750428641319,-460.0,0.00020252,2]
[366745580,1750428641329,-155.0,0.00020252,2]
[366745581,1750428641340,-460.0,0.00020252,2]
[366745582,1750428641350,-460.0,0.00020252,2]
[366745583,1750428641514,-460.0,0.00020252,2]
[366745584,1750428641524,-460.0,0.00020252,2]
[366745585,1750428641534,-275.65464692,0.00020252,2]
[366745586,1750428641544,-460.0,0.00020252,2]
[366745587,1750428641554,-460.0,0.00020253,2]
[366745588,1750428641564,-430.0,0.00020253,2]
[366745589,1750428641574,-491.2640321,0.00020253,2]
[366745590,1750428641584,-519.52459798,0.00020253,2]
[366745591,1750428641593,-430.0,0.00020253,2]
[366745592,1750428641603,-460.0,0.00020253,2]
[366745593,1750428641612,-460.0,0.00020253,2]
[366745594,1750428641622,-460.0,0.00020253,2]
[366745595,1750428641632,-460.0,0.00020253,2]
[366745596,1750428641643,-460.0,0.00020253,2]
[366745597,1750428641652,-460.0,0.00020254,2]
[366745598,1750428641662,-431.53933683,0.00020254,2]
[366745599,1750428641672,-460.0,0.00020254,2]
[366745600,1750428641681,-460.0,0.00020254,2]
[366745601,1750428641691,-460.0,0.00020254,2]
[366745602,1750428641700,-401.65545522,0.00020254,2]
[366745603,1750428641710,-460.0,0.00020254,2]
[366745604,1750428641719,-460.0,0.00020254,2]
[366745605,1750428641729,-460.0,0.00020254,2]
[366745606,1750428641739,-432.2685416,0.00020254,2]
[366745607,1750428641749,-423.01821586,0.00020254,2]
[366745608,1750428641758,-430.0,0.00020254,2]
[366745609,1750428641767,-1956.8331406,0.00020258,2]
[366745610,1750428641777,-460.0,0.00020265,2]
[366745611,1750428641786,-200.0,0.00020265,10]
[366745612,1750428641796,-200.0,0.00020265,10]
[366745613,1750428641805,-153.88345,0.00020265,10]
[366745614,1750428641820,-460.0,0.00020265,2]
[366745615,1750428641829,-460.0,0.00020265,2]
[366745616,1750428641839,-460.0,0.00020265,2]
[366745617,1750428641849,-460.0,0.00020265,2]
[366745618,1750428641862,-690.57,0.00020265,2]
[366745619,1750428641873,-460.0,0.00020265,2]
[366745620,1750428641883,-460.0,0.00020265,2]